bitfinex/quotes_SOLUSD_20250305
["timestamp","ask_amount","ask_price","bid_price","bid_amount"]
[1741176808024,6.072,148.22,148.13,19.19756743]
[1741176808341,0.03,148.2,148.13,19.19756743]
[1741176808644,0.03,148.2,148.12,239.93056743]
[1741176809104,0.03,148.2,148.16,312.0]
[1741176810629,0.03,148.2,148.15,6.7498]
[1741176811033,0.03,148.2,148.12,220.733]
[1741176811317,0.03,148.2,148.13,6.7508]
[1741176811935,0.03,148.2,148.13,25.94836743]
[1741176812247,0.03,148.2,148.14,19.19756743]
[1741176813120,0.03,148.2,148.15,23.6246]
[1741176813308,0.03,148.2,148.15,244.3246]
[1741176813637,0.03,148.2,148.18,312.0]
[1741176814241,0.03,148.2,148.18,101.49756743]
[1741176815108,0.03,148.2,148.19,6.748]
[1741176815950,0.03,148.2,148.16,6.7494]
[1741176817218,0.03,148.2,148.16,318.7494]
[1741176817948,0.03,148.2,148.16,25.94696743]
[1741176818155,0.03,148.2,148.16,6.7494]
[1741176820826,0.03,148.2,148.19,312.0]
[1741176821440,0.03,148.2,148.18,19.19756743]
[1741176821656,0.03,148.2,148.17,19.19756743]
[1741176822353,0.03,148.2,148.18,6.7485]
[1741176824452,0.03,148.2,148.19,318.748]
[1741176826955,0.03,148.22,148.19,594.997658]
[1741176827154,0.03,148.22,148.21,19.19756743]
[1741176827359,0.03,148.22,148.21,239.89756743]
[1741176828921,0.03,148.22,148.21,127.17863943]
[1741176829150,0.03,148.22,148.21,108.24466743]
[1741176829832,0.03,148.22,148.18,82.3]
[1741176830034,0.03,148.22,148.21,312.0]
[1741176830343,0.03,148.22,148.17,138.4]
[1741176830526,0.03,148.22,148.16,88.08]
[1741176830954,0.03,148.22,148.17,19.19756743]
[1741176831132,0.03,148.22,148.15,220.7]
[1741176831527,0.14216157,148.21,148.15,220.7]
[1741176831763,0.03,148.22,148.15,220.7]
[1741176831974,0.03,148.22,148.15,239.89756743]
[1741176832337,0.03,148.22,148.16,19.19756743]
[1741176832544,0.03,148.22,148.17,19.19756743]
[1741176833055,0.03,148.22,148.18,0.033]
[1741176835141,6.102,148.22,148.18,0.033]
[1741176835858,0.14216157,148.21,148.18,0.033]
[1741176837343,6.0728,148.2,148.18,0.033]
[1741176837733,0.14216157,148.19,148.18,0.033]
[1741176838357,6.0728,148.2,148.18,0.033]
[1741176845663,6.1028,148.2,148.18,0.033]
[1741176845866,18.933972,148.19,148.18,0.033]
[1741176846068,0.14216157,148.16,148.13,0.033]
[1741176847451,0.14216157,148.14,148.13,0.033]
[1741176848169,6.21746157,148.14,148.13,0.033]
[1741176848574,25.009272,148.14,148.12,0.033]
[1741176848781,0.14216157,148.12,148.11,0.033]
[1741176850161,25.010072,148.12,148.11,0.033]
[1741176851152,6.0761,148.12,148.11,0.033]
[1741176851347,6.21826157,148.12,148.11,0.033]
[1741176851569,8.65336157,148.12,148.11,0.033]
[1741176851766,8.79552314,148.12,148.11,0.033]
[1741176851970,91.69552314,148.12,148.11,0.033]
[1741176852780,110.345172,148.12,148.11,0.033]
[1741176855186,18.933972,148.11,148.1,0.033]
[1741176855391,25.010472,148.11,148.1,0.033]
[1741176856590,40.201872,148.11,148.08,0.033]
[1741176856895,18.933972,148.09,148.08,0.033]
[1741176857067,18.933972,148.07,148.04,0.033]
[1741176857289,18.933972,148.07,148.03,0.033]
[1741176857290,0.28432314,148.04,148.03,0.033]
[1741176857471,0.28432314,148.04,148.01,0.033]
[1741176857472,18.933972,148.04,148.01,0.033]
[1741176858369,0.14216157,148.04,148.01,0.033]
[1741176859370,2.311,148.05,148.01,0.033]
[1741176860277,6.0791,148.05,148.01,0.033]
[1741176860467,17.4706,148.09,148.01,0.033]
[1741176860468,2.2771,148.09,148.01,0.033]
[1741176860668,18.933972,148.08,148.01,0.033]
[1741176861275,0.14216157,148.05,148.01,0.033]
[1741176861673,0.14216157,148.06,148.01,0.033]
[1741176862078,82.9,148.07,148.01,0.033]
[1741176862366,82.9,148.07,148.01,19.23056743]
[1741176862687,6.0775,148.09,148.01,0.033]
[1741176863078,0.14216157,148.08,148.01,0.033]
[1741176863586,6.22026157,148.08,148.01,312.033]
[1741176864383,23.71766157,148.08,148.01,312.033]
[1741176864574,0.14216157,148.06,148.01,312.033]
[1741176865796,6.079,148.05,148.01,0.033]
[1741176866398,0.14216157,148.06,148.01,0.033]
[1741176866695,6.22076157,148.06,148.01,0.033]
[1741176868177,0.14216157,148.06,148.01,0.033]
[1741176868488,6.0765,148.11,148.02,19.19756743]
[1741176868696,0.14216157,148.1,148.03,312.0]
[1741176869201,18.933972,148.1,148.03,312.0]
[1741176870003,0.14216157,148.08,148.03,312.0]
[1741176870198,0.14216157,148.08,148.03,0.033]
[1741176870580,6.0773,148.09,148.03,0.033]
[1741176870784,0.14216157,148.09,148.03,0.033]
[1741176871096,88.977,148.1,148.03,0.033]
[1741176871677,82.9,148.1,148.03,0.033]
[1741176871878,88.9771,148.1,148.03,0.033]
[1741176873084,88.9771,148.1,148.03,312.033]
[1741176873983,6.21966157,148.09,148.03,312.033]
[1741176874801,82.9,148.1,148.03,318.7882]
[1741176875300,0.14216157,148.1,148.03,318.7882]
[1741176876991,6.0766,148.11,148.03,6.7882]
[1741176877304,6.0766,148.11,148.03,89.0882]
[1741176878091,0.03,148.12,148.04,21.56306743]
[1741176878294,0.03,148.12,148.05,19.19756743]
[1741176878799,0.03,148.12,148.07,6.053]
[1741176879008,0.03,148.12,148.07,245.95056743]
[1741176879199,0.03,148.12,148.09,19.19756743]
[1741176879396,0.03,148.12,148.08,19.19756743]
[1741176879913,0.03,148.12,148.1,312.0]
[1741176880310,0.03,148.12,148.08,220.7]
[1741176880708,0.03,148.12,148.03,226.8529]
[1741176881019,18.963972,148.12,148.03,82.333]
[1741176882189,0.14216157,148.1,148.03,82.333]
[1741176882384,0.14216157,148.08,148.03,0.033]
[1741176882807,18.933972,148.08,148.03,0.033]
[1741176884223,25.011872,148.08,148.03,0.033]
[1741176885614,18.933972,148.08,148.03,0.033]
[1741176886727,25.011872,148.08,148.03,0.033]
[1741176888607,85.3287,148.09,148.03,0.033]
[1741176889008,91.4062,148.09,148.03,0.033]
[1741176891426,91.4062,148.09,148.03,312.033]
[1741176893027,8.5062,148.09,148.03,312.033]
[1741176896133,8.5062,148.09,148.03,0.033]
[1741176899029,2.4287,148.09,148.03,312.033]
[1741176899537,2.4287,148.09,148.03,0.033]
[1741176899538,18.933972,148.08,148.03,0.033]
[1741176899740,24.984872,148.08,148.03,0.033]
[1741176901446,2.4287,148.09,148.03,0.033]
[1741176901820,18.933972,148.08,148.03,0.033]
[1741176902119,10.40544407,148.07,148.01,0.033]
[1741176902339,10.40544407,148.07,148.03,312.0]
[1741176902952,10.40544407,148.07,148.01,0.033]
[1741176903125,0.14216157,148.08,148.01,0.033]
[1741176903317,12.83414407,148.09,148.01,157.63056743]
[1741176903512,10.40544407,148.09,148.03,19.19756743]
[1741176903718,10.40544407,148.09,148.05,19.19756743]
[1741176904111,0.03,148.12,148.05,19.19756743]
[1741176904318,0.03,148.12,148.05,239.89756743]
[1741176904829,0.03,148.12,148.06,6.754]
[1741176905343,0.03,148.12,148.09,19.19756743]
[1741176905521,0.03,148.12,148.1,19.19756743]
[1741176905854,0.03,148.12,148.11,19.19756743]
[1741176906329,0.03,148.12,148.1,220.7]
[1741176906929,0.03,148.12,148.1,82.3]
[1741176907521,0.03,148.12,148.1,227.452]
[1741176907719,0.03,148.12,148.11,19.19756743]
[1741176908041,0.03,148.12,148.11,239.89756743]
[1741176908219,0.03,148.12,148.11,258.83153943]
[1741176908418,0.03,148.12,148.11,265.32693943]
[1741176908619,10.5586093,148.18,148.12,18.933972]
[1741176908822,10.5586093,148.18,148.14,19.19756743]
[1741176909251,10.5586093,148.18,148.16,312.0]
[1741176909649,10.5586093,148.18,148.16,450.4]
[1741176910138,0.03,148.2,148.17,19.19756743]
[1741176910344,0.03,148.2,148.19,19.19756743]
[1741176910544,0.03,148.2,148.19,176.53153943]
[1741176910945,0.03,148.2,148.19,183.27953943]
[1741176911129,0.03,148.2,148.19,185.56353943]
[1741176911328,0.03,148.2,148.19,204.76110686]
[1741176911751,0.03,148.24,148.23,38.933972]
[1741176911952,0.03,148.26,148.25,25.59999057]
[1741176912158,0.03,148.26,148.25,6.1181]
[1741176912359,0.03,148.26,148.25,82.3]
[1741176913057,0.03,148.26,148.22,82.3]
[1741176913355,0.03,148.26,148.19,82.3]
[1741176913560,0.03,148.26,148.17,145.0626]
[1741176913561,18.933972,148.25,148.17,220.7]
[1741176913775,101.833972,148.25,148.17,82.3]
[1741176913964,0.28432314,148.25,148.13,148.15553212]
[1741176914180,25.359072,148.23,148.11,220.7]
[1741176914475,0.14216157,148.2,148.1,144.16]
[1741176914771,18.79181043,148.21,148.1,94.8121]
[1741176914976,0.14216157,148.19,148.1,88.06]
[1741176915148,18.933972,148.18,148.06,220.7]
[1741176915353,18.933972,148.18,148.05,6.0268]
[1741176915554,0.28432314,148.18,148.05,12.7812]
[1741176915756,0.28432314,148.18,148.05,151.1812]
[1741176915973,0.28432314,148.18,148.06,30.71047619]
[1741176916285,0.28432314,148.18,148.06,349.46447619]
[1741176916574,0.28432314,148.18,148.06,312.0]
[1741176917061,18.933972,148.18,148.06,312.0]
[1741176917464,0.28432314,148.18,148.06,312.0]
[1741176917665,18.933972,148.18,148.06,342.71047619]
[1741176918162,0.28432314,148.18,148.06,349.46417619]
[1741176918848,18.963972,148.18,148.06,349.46417619]
[1741176919248,18.963972,148.18,148.06,37.46417619]
[1741176919757,18.963972,148.18,148.06,175.86417619]
[1741176920055,0.31432314,148.18,148.06,175.86417619]
[1741176920257,6.38812314,148.18,148.06,138.4]
[1741176920767,18.82181043,148.18,148.06,30.71047619]
[1741176921081,0.03,148.18,148.05,168.0669]
[1741176921264,25.037672,148.18,148.05,198.77737619]
[1741176921466,25.037672,148.18,148.05,181.89127619]
[1741176921664,18.933972,148.16,148.05,12.7808]
[1741176921862,18.933972,148.16,148.06,30.71047619]
[1741176922165,18.933972,148.16,148.07,30.71047619]
[1741176922355,18.933972,148.16,148.06,312.0]
[1741176922555,18.933972,148.16,148.06,342.71047619]
[1741176922974,18.933972,148.16,148.06,312.0]
[1741176923377,18.933972,148.16,148.07,6.7535]
[1741176924662,2.2868,148.17,148.08,30.71047619]
[1741176924879,18.933972,148.16,148.07,145.1535]
[1741176925371,18.79181043,148.14,148.07,145.1535]
[1741176925576,18.79181043,148.14,148.07,6.7535]
[1741176926379,6.1925,148.15,148.07,37.46397619]
[1741176926681,18.79181043,148.14,148.07,6.7535]
[1741176927575,18.79181043,148.14,148.04,47.59677619]
[1741176927765,18.79181043,148.14,148.05,318.7544]
[1741176928352,6.1925,148.15,148.06,30.71047619]
[1741176928595,0.28432314,148.16,148.08,30.71047619]
[1741176928784,0.28432314,148.16,148.07,30.71047619]
[1741176929283,25.008472,148.16,148.06,169.11047619]
[1741176929864,25.008472,148.16,148.07,6.7535]
[1741176930094,25.008472,148.16,148.04,37.46537619]
[1741176930878,25.008472,148.16,148.06,0.033]
[1741176931869,18.933972,148.14,148.06,0.033]
[1741176934491,2.4785,148.15,148.06,0.033]
[1741176934663,18.933972,148.14,148.06,0.033]
[1741176935996,25.009572,148.14,148.06,6.787]
[1741176937369,82.9,148.13,148.06,6.787]
[1741176937591,0.14216157,148.1,148.06,0.033]
[1741176937893,0.14216157,148.08,148.06,0.033]
[1741176939575,24.87001043,148.07,148.06,0.033]
[1741176944494,18.79181043,148.07,148.06,0.033]
[1741176944794,82.9,148.08,148.06,0.033]
[1741176944984,18.933972,148.07,148.06,0.033]
[1741176945671,6.36252314,148.07,148.06,0.033]
[1741176945872,18.933972,148.05,148.03,0.033]
[1741176946702,18.933972,148.05,148.01,0.033]
[1741176946872,18.933972,148.03,148.01,0.033]
[1741176947074,18.933972,148.03,147.99,0.033]
[1741176947283,18.933972,148.01,147.99,0.033]
[1741176947696,25.014972,148.0,147.99,0.033]
[1741176948001,18.933972,147.99,147.96,0.033]
[1741176949008,0.28432314,147.99,147.96,0.033]
[1741176949886,18.933972,147.97,147.96,0.033]
[1741176950698,27.698972,147.96,147.95,0.033]
[1741176951013,18.64964886,147.94,147.91,0.033]
[1741176951217,0.28432314,147.93,147.91,0.033]
[1741176951981,18.79181043,147.92,147.91,0.033]
[1741176952303,0.14216157,147.92,147.91,0.033]
[1741176952893,18.64964886,147.93,147.91,0.033]
[1741176953073,82.9,147.94,147.91,0.033]
[1741176953280,18.933972,147.93,147.91,0.033]
[1741176957410,82.9,147.94,147.91,0.033]
[1741176957790,18.933972,147.93,147.91,0.033]
[1741176959501,6.36862314,147.92,147.91,0.033]
[1741176960994,6.36862314,147.92,147.88,0.033]
[1741176960995,0.28432314,147.91,147.88,0.033]
[1741176961211,0.28432314,147.89,147.78,7.6794712]
[1741176961512,0.28432314,147.87,147.78,7.6794712]
[1741176961894,18.933972,147.85,147.78,1.4820712]
[1741176963312,18.933972,147.83,147.78,1.4820712]
[1741176964619,6.0873,147.85,147.78,1.4820712]
[1741176964817,0.28432314,147.84,147.78,1.4820712]
[1741176965416,0.14216157,147.84,147.78,1.4820712]
[1741176965714,0.14216157,147.82,147.78,1.4820712]
[1741176967010,2.3201,147.86,147.78,38.89810873]
[1741176967194,8.407,147.86,147.78,8.0931712]
[1741176967509,18.933972,147.85,147.78,8.0931712]
[1741176967819,18.933972,147.85,147.78,1.5150712]
[1741176968916,18.933972,147.83,147.78,1.5150712]
[1741176970028,18.933972,147.81,147.78,1.5150712]
[1741176970520,0.28432314,147.81,147.78,1.5150712]
[1741176971813,18.933972,147.81,147.78,1.5150712]
[1741176972401,0.28432314,147.79,147.78,1.5150712]
[1741176972603,18.933972,147.79,147.78,1.5150712]
[1741176972799,18.933972,147.79,147.76,0.033]
[1741176973004,18.933972,147.79,147.66,6.1336]
[1741176973725,18.933972,147.77,147.66,6.1336]
[1741176974795,18.933972,147.77,147.66,12.9057]
[1741176975408,18.933972,147.77,147.66,6.1336]
[1741176975619,18.933972,147.75,147.64,6.7731]
[1741176975933,18.933972,147.73,147.63,6.7736]
[1741176976632,18.933972,147.73,147.64,30.80493753]
[1741176977532,8.4833,147.76,147.67,30.80493753]
[1741176977732,2.3732,147.76,147.63,192.91273753]
[1741176977902,18.79181043,147.75,147.66,30.80493753]
[1741176978109,0.14216157,147.74,147.66,30.80493753]
[1741176978428,18.79181043,147.75,147.65,30.80493753]
[1741176978628,0.14216157,147.72,147.63,89.0736]
[1741176978802,18.933972,147.7,147.63,6.7736]
[1741176979002,0.28432314,147.7,147.63,6.7736]
[1741176980110,0.14216157,147.74,147.64,30.80493753]
[1741176980304,0.14216157,147.73,147.64,30.80493753]
[1741176980627,0.14216157,147.72,147.64,30.80493753]
[1741176980823,0.14216157,147.72,147.63,136.81273753]
[1741176981407,0.14216157,147.72,147.63,106.0078]
[1741176981603,6.23486157,147.72,147.63,448.81273753]
[1741176981822,0.14216157,147.7,147.63,431.87853753]
[1741176982525,0.28432314,147.7,147.63,89.0736]
[1741176983226,6.37772314,147.7,147.63,0.033]
[1741176983433,0.14216157,147.67,147.63,0.033]
[1741176984610,0.28432314,147.65,147.63,0.033]
[1741176985021,0.28432314,147.65,147.54,6.3472]
[1741176985211,6.2771,147.64,147.54,6.3472]
[1741176985415,18.933972,147.63,147.54,318.3472]
[1741176985727,18.933972,147.63,147.53,30.80493753]
[1741176985923,0.28432314,147.61,147.51,6.3472]
[1741176986232,0.28432314,147.65,147.56,30.80493753]
[1741176986423,2.4825,147.66,147.58,30.80493753]
[1741176986606,0.14216157,147.65,147.58,30.80493753]
[1741176986930,18.933972,147.65,147.57,30.80493753]
[1741176987132,18.933972,147.65,147.56,30.80493753]
[1741176987335,0.28432314,147.65,147.57,30.80493753]
[1741176987519,0.28432314,147.65,147.58,30.80493753]
[1741176987840,0.28432314,147.65,147.57,30.80493753]
[1741176988127,0.28432314,147.65,147.56,30.80493753]
[1741176988128,18.933972,147.65,147.56,30.80493753]
[1741176988333,18.933972,147.65,147.57,30.80493753]
[1741176988706,18.933972,147.65,147.57,349.58133753]
[1741176989120,18.933972,147.65,147.57,312.0]
[1741176989317,25.029572,147.65,147.57,312.0]
[1741176989516,25.029572,147.65,147.54,30.80493753]
[1741176989824,25.029572,147.65,147.53,138.4]
[1741176990012,25.029572,147.65,147.54,30.80493753]
[1741176990415,25.029572,147.65,147.52,6.7787]
[1741176990706,25.029572,147.65,147.52,145.1787]
[1741176990911,25.029572,147.65,147.53,30.80493753]
[1741176991346,25.029572,147.65,147.54,6.7778]
[1741176991714,25.029572,147.65,147.54,37.58273753]
[1741176992607,25.029572,147.65,147.54,349.58273753]
[1741176993333,25.029572,147.65,147.54,318.7778]
[1741176993540,0.28432314,147.61,147.54,312.0]
[1741176993720,18.933972,147.61,147.51,37.58413753]
[1741176994030,2.4486,147.62,147.56,30.80493753]
[1741176994434,2.4486,147.62,147.57,30.80493753]
[1741176994935,2.4486,147.62,147.56,30.80493753]
[1741176995132,18.64964886,147.66,147.53,3.42263507]
[1741176995133,2.3378,147.66,147.57,30.80493753]
[1741176995322,2.3378,147.66,147.59,30.80493753]
[1741176995527,2.3378,147.66,147.6,6.775]
[1741176995716,8.433,147.66,147.59,145.1754]
[1741176995915,8.433,147.66,147.59,138.4]
[1741176996220,0.28432314,147.65,147.59,138.4]
[1741176996414,0.28432314,147.62,147.55,12.5172]
[1741176996737,0.28432314,147.62,147.55,324.5172]
[1741176996907,6.6036,147.64,147.55,324.5172]
[1741176997113,0.28432314,147.65,147.57,30.80493753]
[1741176997312,18.933972,147.65,147.55,167.8606]
[1741176997538,18.933972,147.65,147.55,198.66553753]
[1741176997746,18.933972,147.65,147.56,30.80493753]
[1741176998418,18.933972,147.65,147.57,30.80493753]
[1741176999134,0.28432314,147.65,147.57,138.4]
[1741176999442,25.029572,147.65,147.58,6.7759]
[1741176999818,0.14216157,147.64,147.58,6.7759]
[1741177000014,2.3378,147.66,147.58,37.58083753]
[1741177000254,0.28432314,147.65,147.58,318.7759]
[1741177000543,18.933972,147.65,147.58,318.7759]
[1741177001636,0.14216157,147.64,147.58,318.7759]
[1741177001811,2.3378,147.66,147.58,6.7759]
[1741177002147,2.3378,147.66,147.59,30.80493753]
[1741177002931,2.3378,147.66,147.59,138.4]
[1741177003314,2.3378,147.66,147.59,169.20493753]
[1741177003758,2.3378,147.66,147.61,30.80493753]
[1741177003962,15.2304,147.74,147.61,30.80493753]
[1741177003963,2.3097,147.7,147.62,30.80493753]
[1741177004130,2.3097,147.7,147.64,30.80493753]
[1741177004758,2.3097,147.7,147.65,312.0]
[1741177005137,2.3097,147.7,147.62,172.56033917]
[1741177005343,2.3097,147.7,147.62,169.20493753]
[1741177005539,0.14216157,147.69,147.62,138.4]
[1741177005749,25.028072,147.69,147.62,6.7739]
[1741177005929,25.028072,147.69,147.61,6.7744]
[1741177006331,25.028072,147.69,147.58,175.59003753]
[1741177006560,40.262672,147.69,147.59,6.7753]
[1741177006757,40.262672,147.69,147.58,138.4]
[1741177006963,40.262672,147.69,147.58,145.1758]
[1741177007132,19.89938964,147.65,147.58,145.1758]
[1741177007860,0.28432314,147.64,147.58,6.7758]
[1741177008243,19.92938964,147.65,147.58,349.58073753]
[1741177008561,19.92938964,147.65,147.58,318.7758]
[1741177009763,19.92938964,147.65,147.59,30.80493753]
[1741177010141,19.92938964,147.65,147.59,169.20493753]
[1741177010548,19.92938964,147.65,147.61,30.80493753]
[1741177010746,19.92938964,147.65,147.61,169.20493753]
[1741177011665,19.92938964,147.65,147.62,6.7741]
[1741177012166,19.92938964,147.65,147.61,138.4]
[1741177012748,26.02488964,147.65,147.61,138.4]
[1741177012950,19.92938964,147.65,147.58,6.7758]
[1741177013151,19.92938964,147.65,147.58,145.1758]
[1741177013557,19.92938964,147.65,147.6,30.80493753]
[1741177013740,19.92938964,147.65,147.62,6.7741]
[1741177013942,19.92938964,147.65,147.62,175.97903753]
[1741177014168,19.92938964,147.65,147.63,30.80493753]
[1741177014984,0.03,147.65,147.64,30.80493753]
[1741177015171,2.4106,147.75,147.65,0.28432314]
[1741177015341,2.4106,147.75,147.7,30.80493753]
[1741177015541,2.4106,147.75,147.7,138.4]
[1741177015952,2.4106,147.75,147.7,145.1703]
[1741177016660,2.4106,147.75,147.7,457.1703]
[1741177017168,0.03,147.76,147.7,175.97523753]
[1741177017353,0.03,147.76,147.7,145.1703]
[1741177018238,0.03,147.76,147.7,138.4]
[1741177018979,0.03,147.76,147.69,138.4]
[1741177020152,6.1209,147.76,147.69,450.4]
[1741177020480,6.1209,147.76,147.69,457.1709]
[1741177020775,6.1209,147.76,147.69,450.4]
[1741177021175,6.1209,147.76,147.69,457.1708]
[1741177021377,0.03,147.76,147.69,175.97573753]
[1741177021761,0.03,147.76,147.69,138.4]
[1741177022761,0.14216157,147.72,147.65,138.4]
[1741177023164,0.14216157,147.72,147.62,138.4]
[1741177023478,0.14216157,147.72,147.59,169.20493753]
[1741177023858,0.14216157,147.72,147.59,138.4]
[1741177024053,0.14216157,147.7,147.6,6.7747]
[1741177024275,0.14216157,147.7,147.6,82.3]
[1741177024276,18.933972,147.68,147.6,82.3]
[1741177024474,18.933972,147.68,147.6,394.3]
[1741177025391,2.3713,147.69,147.61,30.80493753]
[1741177025765,18.933972,147.68,147.6,220.7]
[1741177026182,6.0946,147.67,147.6,227.4749]
[1741177026681,18.933972,147.68,147.6,227.4749]
[1741177026884,25.028272,147.68,147.6,227.4749]
[1741177027758,18.933972,147.68,147.6,89.075]
[1741177028075,0.28432314,147.68,147.6,89.075]
[1741177028277,2.3713,147.69,147.61,30.80493753]
[1741177028484,2.3713,147.69,147.63,312.0]
[1741177028666,2.3713,147.69,147.63,532.7]
[1741177029062,2.3617,147.73,147.64,30.80493753]
[1741177029265,2.3617,147.73,147.65,30.80493753]
[1741177029463,2.3617,147.73,147.66,30.80493753]
[1741177029669,2.3617,147.73,147.64,251.50493753]
[1741177030006,18.933972,147.72,147.64,220.7]
[1741177030161,18.933972,147.7,147.64,82.3]
[1741177031068,0.28432314,147.67,147.64,82.3]
[1741177031589,2.4944,147.69,147.64,89.073]
[1741177031783,2.4944,147.69,147.64,82.3]
[1741177032170,2.4944,147.69,147.64,89.0731]
[1741177032691,2.4944,147.69,147.64,82.3]
[1741177033191,2.4944,147.69,147.64,89.0732]
[1741177033771,2.3751,147.73,147.65,19.3209472]
[1741177033975,2.3751,147.73,147.66,19.3209472]
[1741177034269,2.3751,147.73,147.67,23.7014]
[1741177034471,2.3751,147.73,147.67,54.58997749]
[1741177034701,10.58148868,147.76,147.68,30.88857749]
[1741177034902,10.58148868,147.76,147.68,251.58857749]
[1741177035400,10.58148868,147.76,147.68,220.7]
[1741177035574,10.58148868,147.76,147.68,532.7]
[1741177035898,16.67248868,147.76,147.68,532.7]
[1741177036398,16.67248868,147.76,147.69,6.7709]
[1741177036789,0.03,147.76,147.69,54.58677749]
[1741177036990,0.03,147.76,147.7,30.88857749]
[1741177037180,0.03,147.76,147.71,30.88857749]
[1741177037381,0.03,147.76,147.74,30.88857749]
[1741177037588,0.03,147.76,147.75,30.88857749]
[1741177037783,0.03,147.76,147.75,49.53822635]
[1741177038172,0.03,147.76,147.74,220.7]
[1741177039008,0.03,147.76,147.72,82.3]
[1741177039803,2.4827,147.75,147.72,82.3]
[1741177040298,6.0917,147.74,147.72,82.3]
[1741177041802,2.4827,147.75,147.72,82.3]
[1741177042904,8.5741,147.75,147.72,82.3]
[1741177044099,0.28432314,147.74,147.66,226.44]
[1741177044303,18.933972,147.74,147.66,220.7]
[1741177045408,6.0921,147.73,147.66,220.7]
[1741177045915,6.0921,147.73,147.66,532.7]
[1741177046903,6.0921,147.73,147.66,258.36077749]
[1741177047212,2.05458366,147.75,147.69,30.88857749]
[1741177047395,0.03,147.76,147.71,30.88857749]
[1741177047588,0.03,147.76,147.72,30.88857749]
[1741177047784,0.03,147.76,147.72,251.58857749]
[1741177048009,6.1209,147.76,147.72,220.7]
[1741177048598,0.14216157,147.75,147.72,82.3]
[1741177050312,0.28432314,147.75,147.69,82.3]
[1741177050806,18.933972,147.75,147.69,82.3]
[1741177051510,6.0917,147.74,147.69,82.3]
[1741177051716,6.0915,147.75,147.69,82.3]
[1741177052012,6.26316157,147.76,147.69,89.0708]
[1741177052211,0.14216157,147.75,147.69,82.3]
[1741177052529,18.79181043,147.75,147.69,82.3]
[1741177052707,0.14216157,147.72,147.69,82.3]
[1741177053117,8.7942,147.73,147.69,82.3]
[1741177053415,2.3367,147.73,147.69,89.0709]
[1741177053710,6.121,147.76,147.69,89.0709]
[1741177053916,0.03,147.76,147.69,258.35947749]
[1741177054313,0.03,147.76,147.69,227.4709]
[1741177055417,0.03,147.76,147.72,49.53822635]
[1741177055596,0.03,147.76,147.73,30.88857749]
[1741177055892,0.03,147.76,147.72,270.23822635]
[1741177056088,0.03,147.76,147.74,30.88857749]
[1741177056322,0.03,147.76,147.75,49.53822635]
[1741177056528,0.03,147.76,147.75,271.65881667]
[1741177056699,0.0001,147.76,147.75,582.52254949]
[1741177057098,0.03,147.8,147.76,101.233872]
[1741177057427,0.03,147.8,147.79,63.25474949]
[1741177057604,0.03,147.8,147.79,289.41032635]
[1741177058306,0.03,147.8,147.79,282.64402635]
[1741177058524,0.03,147.8,147.79,226.4399]
[1741177059014,0.03,147.8,147.79,82.2999]
[1741177059525,0.03,147.8,147.72,30.88857749]
[1741177059724,0.03,147.8,147.72,251.58847749]
[1741177060050,0.03,147.8,147.73,30.88857749]
[1741177060231,0.03,147.8,147.75,30.88857749]
[1741177060418,0.03,147.8,147.78,30.88857749]
[1741177060723,0.03,147.8,147.79,30.88857749]
[1741177060922,0.03,147.8,147.78,251.58847749]
[1741177061617,0.03,147.8,147.79,30.88857749]
[1741177062128,0.03,147.8,147.79,278.2373837]